bitfinex-derivatives/quotes_SOLF0:USTF0_20250127
["timestamp","ask_amount","ask_price","bid_price","bid_amount"]
[1737986102669,26.84536777,231.13,230.96,74.26]
[1737986102964,26.84536777,231.09,230.88,28.21596777]
[1737986103167,4.3305,230.94,230.85,4.332]
[1737986103363,26.84536777,231.05,230.84,26.84536777]
[1737986103565,0.02956268,230.92,230.87,0.02947793]
[1737986103765,26.84536777,231.01,230.8,26.84536777]
[1737986103964,0.03073159,230.92,230.87,0.03042236]
[1737986104368,1.3234,231.0,230.89,26.84536777]
[1737986104565,0.02994798,230.92,230.87,0.03221655]
[1737986104765,4.3308,230.92,230.81,4.3327]
[1737986104971,0.02728123,230.92,230.87,0.03245489]
[1737986105270,4.3308,230.92,230.87,0.03245489]
[1737986105471,0.02856224,230.92,230.87,0.03245489]
[1737986106365,4.331,230.91,230.87,0.03245489]
[1737986106568,0.02856224,230.92,230.87,0.03245489]
[1737986106970,4.331,230.91,230.87,0.03245489]
[1737986107470,0.02856224,230.92,230.87,0.03245489]
[1737986108172,28.21346777,231.04,230.9,26.84536777]
[1737986108173,1.3681,231.04,230.9,26.84536777]
[1737986109172,4.3291,231.01,230.93,4.3304]
[1737986109367,0.02748063,230.99,230.95,0.0317211]
[1737986109864,0.03045916,230.99,230.95,0.02997251]
[1737986111571,0.03045916,230.99,230.82,26.84536777]
[1737986111772,4.3312,230.9,230.82,26.84536777]
[1737986112076,28.18586777,231.03,230.82,26.84536777]
[1737986112368,1.3405,231.03,230.86,26.84536777]
[1737986112774,0.03103447,230.97,230.92,0.0273342]
[1737986117170,18.0,231.16,230.94,26.84536777]
[1737986117376,1.4394,231.15,231.02,26.84536777]
[1737986117575,18.0,231.16,231.06,26.84536777]
[1737986117970,18.0,231.16,230.93,5.2067]
[1737986117971,18.0,231.16,231.02,26.84536777]
[1737986118380,4.3279,231.08,231.07,0.02818408]
[1737986118779,0.0284488,231.11,230.94,26.84536777]
[1737986119278,26.84536777,231.14,230.94,26.84536777]
[1737986119976,4.3289,231.03,230.94,26.84536777]
[1737986120284,4.3289,231.03,231.02,0.0300701]
[1737986120579,0.03107538,231.05,231.0,0.03156786]
[1737986120776,0.03107538,231.05,230.94,31.17596777]
[1737986120980,0.03107538,231.05,231.0,0.02764629]
[1737986122478,18.0,231.16,231.02,26.84536777]
[1737986122679,18.0,231.16,231.1,4.3276]
[1737986122876,18.0,231.16,231.07,26.84536777]
[1737986123078,18.0,231.16,231.03,1.3559]
[1737986123079,18.0,231.16,231.11,26.84536777]
[1737986123384,17.97118703,231.16,231.14,4.3269]
[1737986123880,17.97118703,231.16,231.13,0.02804193]
[1737986124282,0.03126851,231.17,231.13,0.02804193]
[1737986124283,6.851e-05,231.17,231.15,26.84536777]
[1737986124483,2.9213,231.37,231.15,26.84536777]
[1737986124679,2.9213,231.37,231.26,26.84536777]
[1737986125384,1.4022,231.45,231.26,26.84536777]
[1737986125584,2.9213,231.44,231.29,0.033075]
[1737986125782,4.3225,231.38,231.27,4.3243]
[1737986125988,2.9213,231.44,231.26,26.84536777]
[1737986126288,1.4022,231.43,231.34,0.03240344]
[1737986126488,4.3225,231.38,231.34,0.03240344]
[1737986126885,1.4022,231.43,231.34,0.03240344]
[1737986127285,2.9213,231.44,231.34,26.87777121]
[1737986127488,1.5886,231.44,231.34,26.87777121]
[1737986127789,4.3202,231.5,231.38,31.16766777]
[1737986128090,4.3202,231.5,231.38,26.84536777]
[1737986128282,4.3204,231.49,231.42,0.03212505]
[1737986129389,4.32,231.51,231.42,0.03212505]
[1737986129594,1.4354,231.57,231.42,26.87749282]
[1737986129795,1.4354,231.57,231.42,26.84536777]
[1737986129996,4.3191,231.56,231.47,0.03119739]
[1737986130297,1.4354,231.57,231.46,26.84536777]
[1737986130595,1.4354,231.57,231.36,26.84536777]
[1737986130596,1.4354,231.57,231.49,0.03279328]
[1737986130897,1.4354,231.57,231.38,26.84536777]
[1737986131191,4.3199,231.52,231.38,26.84536777]
[1737986131397,1.4354,231.57,231.38,26.84536777]
[1737986131596,26.84536777,231.54,231.34,26.84536777]
[1737986132196,4.3211,231.45,231.42,0.03055796]
[1737986132496,0.02753326,231.46,231.42,0.03055796]
[1737986132700,4.3214,231.43,231.42,0.03055796]
[1737986133192,0.02753326,231.46,231.38,26.84536777]
[1737986133397,0.02753326,231.46,231.42,26.84536777]
[1737986133591,1.4354,231.57,231.38,26.84536777]
[1737986133800,4.3215,231.43,231.38,26.84536777]
[1737986134198,1.4354,231.57,231.38,26.84536777]
[1737986134800,0.02984681,231.5,231.45,0.03168763]
[1737986135096,26.87521458,231.5,231.29,26.84536777]
[1737986135296,26.87521458,231.5,231.23,74.14]
[1737986135297,26.84536777,231.42,231.23,74.14]
[1737986135602,2.9827,231.41,231.25,26.84536777]
[1737986136102,2.9827,231.41,231.29,26.84536777]
[1737986136293,0.03018687,231.35,231.31,0.02998593]
[1737986139905,0.03018687,231.35,231.33,26.84536777]
[1737986140306,4.3214,231.43,231.33,26.84536777]
[1737986140702,2.9827,231.49,231.33,26.84536777]
[1737986140906,2.9827,231.49,231.37,26.84536777]
[1737986141307,4.3207,231.47,231.38,4.3222]
[1737986141602,4.3207,231.47,231.37,26.84536777]
[1737986141603,0.02749074,231.45,231.41,0.03004041]
[1737986141807,0.02749074,231.45,231.44,4.3212]
[1737986142609,1.3992,231.57,231.44,4.3212]
[1737986143002,1.3992,231.57,231.46,4.3208]
[1737986143205,350.48188519,231.51,231.41,26.84536777]
[1737986143603,4.3513794,231.48,231.44,0.03122369]
[1737986143804,0.0308794,231.48,231.44,0.03122369]
[1737986144101,4.321,231.45,231.44,0.03122369]
[1737986144614,0.0308794,231.48,231.44,0.03122369]
[1737986145711,4.321,231.45,231.44,0.03122369]
[1737986145911,0.0308794,231.48,231.44,0.03122369]
[1737986146407,4.321,231.45,231.44,0.03122369]
[1737986146804,1.7299,231.47,231.33,26.84536777]
[1737986147913,0.02913502,231.42,231.38,0.0316241]
[1737986150213,4.35073502,231.42,231.38,0.0316241]
[1737986150412,0.02913502,231.42,231.38,0.0316241]
[1737986150814,0.02913502,231.42,231.41,4.3218]
[1737986151113,0.02913502,231.42,231.38,0.0316241]
[1737986151310,0.02913502,231.42,231.41,4.3218]
[1737986151717,1.8002,231.56,231.41,26.84536777]
[1737986152424,26.84536777,231.53,231.33,26.84536777]
[1737986152615,1.4174,231.52,231.33,26.84536777]
[1737986152918,0.02934264,231.45,231.4,0.03131736]
[1737986153718,4.3218,231.42,231.4,0.03131736]
[1737986153919,0.02934264,231.45,231.4,0.03131736]
[1737986154520,4.3217,231.42,231.4,0.03131736]
[1737986155014,0.02934264,231.45,231.4,0.03131736]
[1737986155719,0.02934264,231.45,231.4,4.35311736]
[1737986155920,0.02934264,231.45,231.4,0.03131736]
[1737986156424,1.8002,231.56,231.41,26.84536777]
[1737986156714,1.8002,231.56,231.45,26.84536777]
[1737986156920,1.8002,231.56,231.47,4.3206]
[1737986157214,1.8002,231.56,231.45,26.84536777]
[1737986157415,1.8002,231.56,231.49,0.02911505]
[1737986157618,0.02170116,231.54,231.49,0.02911505]
[1737986159524,1.7617,231.64,231.53,26.84536777]
[1737986160116,4.3184,231.6,231.53,26.84536777]
[1737986160322,1.7617,231.64,231.53,26.84536777]
[1737986160821,1.7617,231.64,231.56,0.03025346]
[1737986161121,26.84536777,231.62,231.43,26.84536777]
[1737986161319,1.7617,231.64,231.43,26.84536777]
[1737986161515,1.7617,231.64,231.47,26.84536777]
[1737986161717,4.3188,231.57,231.48,4.3204]
[1737986162025,1.7617,231.64,231.47,26.84536777]
[1737986162221,0.02811234,231.55,231.51,4.3198]
[1737986162526,1.7617,231.64,231.52,26.84536777]
[1737986162725,4.3181,231.61,231.52,31.16506777]
[1737986163018,0.029777,231.55,231.52,26.84536777]
[1737986163224,0.029777,231.55,231.51,0.03165775]
[1737986163422,1.7617,231.64,231.48,26.84536777]
[1737986163622,0.029777,231.55,231.51,0.03214061]
[1737986163821,4.317,231.67,231.54,26.84536777]
[1737986164120,1.7938,231.73,231.64,26.84536777]
[1737986164826,6.1096,231.73,231.64,31.16276777]
[1737986165122,1.5058,231.81,231.68,26.84536777]
[1737986165725,4.3151,231.78,231.72,0.02864505]
[1737986165925,1.5058,231.81,231.72,0.02864505]
[1737986166228,4.3155,231.75,231.72,0.02864505]
[1737986166425,1.5358,231.77,231.72,0.02864505]
[1737986166917,5.8509,231.77,231.72,0.02864505]
[1737986167124,1.5358,231.77,231.72,0.02864505]
[1737986167319,1.5058,231.81,231.72,0.02864505]
[1737986168325,4.3151,231.77,231.72,0.02864505]
[1737986169528,4.3148,231.79,231.72,0.02864505]
[1737986169730,1.5058,231.81,231.72,0.02864505]
[1737986170425,4.3158,231.73,231.72,0.02864505]
[1737986170629,1.5058,231.81,231.72,0.02864505]
[1737986171230,4.3158,231.73,231.72,0.02864505]
[1737986171931,4.3167,231.67,231.6,26.84536777]
[1737986172133,1.5058,231.81,231.6,26.84536777]
[1737986172329,1.5058,231.81,231.63,4.3174]
[1737986172631,4.3153,231.75,231.64,26.84536777]
[1737986172932,1.5058,231.81,231.68,4.3165]
[1737986173131,0.02864505,231.72,231.68,4.3165]
[1737986173326,1.5058,231.81,231.64,26.84536777]
[1737986173534,0.02864505,231.72,231.68,0.03030783]
[1737986173732,26.84536777,231.78,231.56,26.84536777]
[1737986174032,26.84536777,231.74,231.56,26.84536777]
[1737986174828,26.84536777,231.74,231.63,0.02917178]
[1737986175033,0.03152258,231.67,231.63,0.02917178]
[1737986175228,0.03152258,231.67,231.52,26.84536777]
[1737986175433,26.84536777,231.7,231.48,26.84536777]
[1737986175635,26.84536777,231.66,231.48,26.84536777]
[1737986175836,4.3189,231.56,231.48,26.84536777]
[1737986176135,26.84536777,231.66,231.44,26.84536777]
[1737986176431,0.02884678,231.57,231.53,5.77e-05]
[1737986176629,4.3192,231.54,231.53,5.77e-05]
[1737986176936,31.16456777,231.54,231.53,5.77e-05]
[1737986178435,4.3192,231.54,231.53,5.77e-05]
[1737986178641,0.02835173,231.56,231.53,5.77e-05]
[1737986180735,1.4177,231.69,231.53,5.77e-05]
[1737986180940,1.4177,231.69,231.56,26.84536777]
[1737986181535,5.7342,231.69,231.58,4.3184]
[1737986181836,0.03263797,231.66,231.61,0.03126268]
[1737986182035,4.3164,231.69,231.6,26.84536777]
[1737986182235,0.02851614,231.66,231.61,0.02941241]
[1737986182638,0.02851614,231.66,231.64,31.16256777]
[1737986182839,4.6904,231.81,231.64,26.84536777]
[1737986183438,4.6904,231.81,231.6,26.84536777]
[1737986183637,4.6904,231.81,231.64,26.84536777]
[1737986184040,0.02893266,231.75,231.7,0.03104672]
[1737986184433,4.6904,231.81,231.6,26.84536777]
[1737986184640,0.02893231,231.75,231.7,0.0276128]
[1737986185038,4.6904,231.81,231.64,26.84536777]
[1737986185340,0.03000165,231.75,231.7,0.03022711]
[1737986185840,4.316,231.72,231.7,0.03022711]
[1737986187741,0.03000165,231.75,231.7,0.03022711]
[1737986188344,0.03000165,231.75,231.74,26.84536777]
[1737986188543,0.03000165,231.75,231.7,26.87559488]
[1737986189239,0.03000165,231.75,231.71,4.316]
[1737986189444,0.03000165,231.75,231.7,26.87559488]
[1737986190445,0.03000165,231.75,231.74,4.3155]
[1737986190647,4.6852,231.95,231.74,26.84536777]
[1737986191447,26.84536777,231.92,231.68,26.84536777]
[1737986191646,26.84536777,231.84,231.64,26.84536777]
[1737986191942,1.4089,231.83,231.64,26.84536777]
[1737986192246,3.2321,231.95,231.77,26.84536777]
[1737986192447,1.4089,231.94,231.77,26.84536777]
[1737986192643,1.4089,231.94,231.77,31.16016777]
[1737986193046,0.03082434,231.88,231.83,0.02926949]
[1737986193350,4.3136,231.84,231.83,0.02926949]
[1737986193645,0.03082434,231.88,231.72,26.84536777]
[1737986193845,1.4089,231.94,231.72,26.84536777]
[1737986194648,0.0276824,231.85,231.81,0.03138727]
[1737986194846,1.4089,231.94,231.81,0.03138727]
[1737986195043,0.03139138,231.85,231.63,26.84536777]
[1737986195346,3.48,231.84,231.63,26.84536777]
[1737986195546,26.84536777,231.87,231.63,26.84536777]
[1737986196150,0.02974638,231.77,231.73,0.02979187]
[1737986196849,4.3153,231.76,231.73,0.02979187]
[1737986197050,0.02974638,231.77,231.73,0.02979187]
[1737986197444,0.02974638,231.77,231.63,26.84536777]
[1737986197749,26.84536777,231.84,231.63,26.84536777]
[1737986197945,26.84536777,231.84,231.63,31.16296777]
[1737986198349,26.84536777,231.84,231.63,26.84536777]
[1737986198549,4.3166,231.69,231.63,26.84536777]
[1737986198741,26.84536777,231.84,231.63,26.84536777]
[1737986198946,0.03189477,231.68,231.64,0.02880384]
[1737986199146,26.84536777,231.84,231.63,26.84536777]
[1737986199352,0.02820627,231.68,231.64,0.03206189]
[1737986199545,26.84536777,231.88,231.67,26.84536777]
[1737986199952,0.02760205,231.8,231.75,0.03263746]
[1737986200253,4.3152,231.76,231.75,0.03263746]
[1737986201151,4.3162,231.71,231.63,26.84536777]
[1737986201348,4.3162,231.71,231.63,31.16306777]
[1737986201551,4.316,231.73,231.63,26.84536777]
[1737986201851,1.4192,231.79,231.63,26.84536777]
[1737986202054,1.4192,231.79,231.58,26.84536777]
[1737986202356,0.03286157,231.73,231.69,0.03182299]
[1737986202948,4.3164,231.7,231.69,0.03182299]
[1737986203148,0.03286157,231.73,231.54,26.84536777]
[1737986203453,26.84536777,231.76,231.54,26.84536777]
[1737986203654,4.3173,231.65,231.57,4.3187]
[1737986204252,0.02751804,231.63,231.57,4.3187]
[1737986204452,0.02751804,231.63,231.59,0.02768006]
[1737986205055,0.02751804,231.63,231.59,4.34598006]
[1737986205349,0.02751804,231.63,231.59,0.02768006]
[1737986205754,0.02751804,231.63,231.59,4.34608006]
[1737986205954,0.02751804,231.63,231.59,0.02768006]
[1737986206256,4.3182,231.6,231.59,0.02768006]
[1737986206651,0.02751804,231.63,231.44,29.60530587]
[1737986206856,4.3198,231.52,231.44,27.89900587]
[1737986207049,1.8855,231.62,231.44,27.89900587]
[1737986207455,1.8855,231.62,231.48,27.89900587]
[1737986207959,0.02818092,231.57,231.53,0.0311986]
[1737986210060,0.02818092,231.57,231.53,4.3506986]
[1737986210854,0.02818092,231.57,231.53,0.0311986]
[1737986211455,0.02818092,231.57,231.56,27.89900587]
[1737986211657,27.89900587,231.8,231.56,27.89900587]
[1737986211854,3.2989,231.79,231.62,27.89900587]
[1737986212561,4.3156,231.74,231.66,4.3171]
[1737986212761,0.03129899,231.73,231.68,0.02896497]
[1737986213460,0.03129899,231.73,231.7,27.89900587]
[1737986213660,1.6545,231.88,231.7,27.89900587]
[1737986213863,1.6545,231.88,231.75,27.89900587]
[1737986214062,3.5337,231.95,231.75,27.89900587]
[1737986214265,17.46907641,231.84,231.75,27.89900587]
[1737986214564,17.46907641,231.84,231.71,27.89900587]
[1737986214759,17.46907641,231.84,231.75,27.89900587]
[1737986215059,0.03016813,231.8,231.75,27.9281397]
[1737986215263,0.03016813,231.8,231.77,4.315]
[1737986215564,0.03016813,231.8,231.75,27.9281397]
[1737986215763,0.03016813,231.8,231.75,0.02913383]
[1737986218160,0.03016813,231.8,231.75,27.9281397]
[1737986218565,0.03016813,231.8,231.75,0.02913383]
[1737986218759,4.3148,231.79,231.75,0.02913383]
[1737986219063,0.03016813,231.8,231.75,0.02913383]
[1737986219467,4.3153,231.76,231.75,0.02913383]
[1737986220366,4.34486813,231.8,231.75,0.02913383]
[1737986220667,0.03016813,231.8,231.75,27.9281397]
[1737986221065,0.03016813,231.8,231.79,32.21370587]
[1737986221268,0.03016813,231.8,231.79,27.89900587]
[1737986221566,0.03016813,231.8,231.75,0.02913383]
[1737986222366,4.3153,231.76,231.75,0.02913383]
[1737986222567,0.03016813,231.8,231.63,74.0]
[1737986222769,27.89900587,231.8,231.63,74.0]
[1737986222963,2.0606,231.79,231.55,3.48]
[1737986223168,1.6628,231.83,231.68,27.89900587]
[1737986223369,1.6628,231.83,231.71,4.3161]
[1737986223768,4.34436473,231.79,231.75,0.02855938]
[1737986223970,0.02966473,231.79,231.75,0.02855938]
[1737986224372,4.3153,231.76,231.75,0.02855938]
[1737986225167,0.02966473,231.79,231.75,0.02855938]
[1737986225674,4.34426473,231.79,231.75,0.02855938]
[1737986225869,0.02966473,231.79,231.75,0.02855938]
[1737986226772,0.02966473,231.79,231.76,27.89900587]
[1737986227067,1.668,231.91,231.76,27.89900587]
[1737986227374,4.3122,231.92,231.83,4.3135]
[1737986227675,3.4685,231.95,231.8,27.89900587]
[1737986227974,3.4685,231.95,231.76,27.89900587]
[1737986228174,0.03165972,231.9,231.85,0.02722145]
[1737986228576,4.3132,231.86,231.85,0.02722145]
[1737986229272,27.89900587,231.87,231.68,27.89900587]
[1737986229576,27.89900587,231.87,231.58,3.48]
[1737986229769,4.3142,231.81,231.66,32.21590587]
[1737986229971,27.89900587,231.87,231.66,27.89900587]
[1737986230172,1.6413,231.89,231.7,27.89900587]
[1737986230373,0.03126507,231.79,231.74,27.92819748]
[1737986230767,1.6413,231.89,231.74,27.89900587]
[1737986230967,0.03080787,231.79,231.74,27.93005866]
[1737986231168,1.6413,231.89,231.74,27.89900587]
[1737986231370,0.02782929,231.79,231.78,27.89900587]
[1737986231575,5.1257,231.95,231.78,27.89900587]
[1737986232075,4.3128,231.88,231.8,4.3142]
[1737986232273,4.3128,231.88,231.78,27.89900587]
[1737986232673,4.3128,231.88,231.79,17.13240514]
[1737986232969,4.3128,231.88,231.81,0.03006691]
[1737986232970,0.03104843,231.85,231.81,0.03006691]
[1737986233370,3.4685,231.95,231.83,17.13240514]
[1737986233573,1.8922,231.95,231.83,17.13240514]
[1737986234375,4.3126,231.89,231.83,17.13240514]
[1737986234676,0.03257583,231.91,231.87,0.02811158]
[1737986235677,4.3128,231.88,231.87,0.02811158]
[1737986238972,0.03257583,231.91,231.79,17.13240514]
[1737986239177,17.13240514,231.92,231.71,17.13240514]
[1737986239378,17.13240514,231.88,231.71,17.13240514]
[1737986239580,3.5946,231.87,231.67,17.13240514]
[1737986240279,0.0291848,231.79,231.75,0.02867448]
[1737986241779,0.0291848,231.79,231.75,17.16107962]
[1737986241979,0.0291848,231.79,231.78,4.3147]
[1737986242277,3.625,231.95,231.75,17.16107962]
[1737986242477,4.3124,231.91,231.79,21.44680514]
[1737986242673,3.625,231.95,231.79,17.13240514]
[1737986243274,0.03169874,231.89,231.85,0.03044463]
[1737986243473,2.0501,232.02,231.87,17.13240514]
[1737986243681,2.0501,232.02,231.83,17.13240514]
[1737986243881,3.298,232.01,231.83,17.13240514]
[1737986244280,4.3119,231.93,231.83,17.13240514]
[1737986244479,3.298,232.01,231.83,17.13240514]
[1737986244679,0.03243382,231.9,231.86,0.0305867]
[1737986244880,3.298,232.01,231.87,17.13240514]
[1737986245776,2.0501,232.02,231.91,17.13240514]
[1737986245980,17.13240514,232.08,231.91,17.13240514]
[1737986246283,1.9841,232.07,231.91,17.13240514]
[1737986246577,0.02858214,232.02,231.97,0.02857412]
[1737986247582,4.3105,232.01,231.97,0.02857412]
[1737986247782,0.02858214,232.02,231.97,0.02857412]
[1737986248082,4.3109,231.98,231.97,0.02857412]
[1737986250084,1.6135,232.01,231.87,17.13240514]
[1737986250279,1.7239,232.0,231.84,17.13240514]
[1737986250686,4.3122,231.92,231.84,17.13240514]
[1737986251186,0.02793152,231.9,231.86,0.03166061]
[1737986251388,1.7239,232.0,231.84,17.13240514]
[1737986251688,0.02958728,231.9,231.86,0.02932181]
[1737986251989,1.7239,232.0,231.84,17.13240514]
[1737986252188,0.0290973,231.9,231.86,0.02989314]
[1737986252385,0.0290973,231.9,231.84,17.13240514]
[1737986252590,0.03187253,231.89,231.86,0.02794273]
[1737986252789,1.7239,232.0,231.84,17.13240514]
[1737986252989,0.02908689,231.9,231.85,0.03126182]
[1737986253191,4.3128,231.89,231.84,17.13240514]
[1737986253490,4.3128,231.89,231.85,0.03197466]
[1737986254494,4.33972514,231.9,231.85,0.03197466]
[1737986254792,0.02722514,231.9,231.85,0.03197466]
[1737986256791,4.3128,231.88,231.85,0.03197466]
[1737986257294,4.313,231.87,231.85,0.03197466]
[1737986258692,4.3132,231.86,231.85,0.03197466]
[1737986262290,0.02722514,231.9,231.76,73.98]
[1737986262493,1.9927,231.89,231.76,73.98]
[1737986262796,4.313,231.88,231.79,17.13240514]
[1737986262995,1.9927,231.89,231.79,17.13240514]
[1737986263395,4.3134,231.85,231.82,0.0320494]
[1737986263691,0.03034533,231.86,231.82,0.0320494]
[1737986264196,0.03034533,231.86,231.71,21.44830514]
[1737986264197,4.3137,231.83,231.71,21.44830514]
[1737986264394,1.6438,231.85,231.71,17.13240514]
[1737986264998,4.3152,231.76,231.71,17.13240514]
[1737986265297,1.6438,231.85,231.71,17.13240514]
[1737986265498,0.02943221,231.76,231.75,17.13240514]
[1737986265792,1.6438,231.85,231.75,17.13240514]
[1737986265992,0.03216645,231.78,231.75,17.13240514]
[1737986266199,0.03216645,231.78,231.75,21.44750514]
[1737986266392,0.03216645,231.78,231.75,17.13240514]
[1737986267398,1.9927,231.89,231.79,4.3145]
[1737986267604,1.9927,231.89,231.75,17.13240514]
[1737986267899,4.3132,231.87,231.79,4.3145]
[1737986268098,1.9927,231.89,231.79,4.3145]
[1737986268400,1.9927,231.89,231.79,17.13240514]
[1737986268595,0.02741196,231.86,231.82,0.03278677]
[1737986269002,17.13240514,232.06,231.83,17.13240514]
[1737986269196,4.3102,232.03,231.92,17.13240514]
[1737986269503,3.5145,232.07,231.92,17.13240514]
[1737986269701,4.3101,232.03,231.93,4.3119]
[1737986269900,3.5145,232.07,231.92,17.13240514]
[1737986270102,17.13240514,232.06,231.84,2.0408]
[1737986270295,0.0310776,232.02,231.97,0.03234166]
[1737986270499,18.72790514,232.06,231.97,0.03234166]
[1737986270699,18.72790514,232.06,231.84,2.0408]
[1737986270903,0.03204311,232.02,231.84,5.2137]
[1737986271103,18.72790514,232.06,231.84,0.9003]
[1737986271705,4.3107,232.0,231.85,4.3134]
[1737986272003,0.02996012,231.97,231.93,0.03190469]
[1737986272405,18.72790514,232.06,231.93,0.03190469]
[1737986272608,0.02999222,231.97,231.93,0.03190469]
[1737986272905,4.3112,231.97,231.93,0.03190469]
[1737986273100,0.0310936,231.97,231.93,0.03190469]
[1737986273304,0.0310936,231.97,231.83,17.13240514]
[1737986273504,17.13240514,232.02,231.83,17.13240514]
[1737986274301,17.13240514,232.02,231.9,0.0296573]
[1737986274602,0.03192656,231.95,231.9,0.0296573]
[1737986274806,0.03192656,231.95,231.79,17.13240514]
[1737986275006,17.13240514,232.02,231.79,17.13240514]
[1737986276005,0.03233184,231.93,231.88,0.02855418]
[1737986276206,0.03233184,231.93,231.79,17.13240514]
[1737986276407,17.13240514,231.98,231.88,0.02915793]
[1737986276806,0.02750852,231.95,231.88,0.02915793]
[1737986277509,4.312,231.93,231.88,0.02915793]
[1737986277708,0.02750852,231.95,231.88,0.02915793]
[1737986279414,0.02750852,231.95,231.89,4.3127]
[1737986279610,0.02750852,231.95,231.88,0.02915793]
[1737986280012,0.02750852,231.95,231.9,4.3124]
[1737986280616,0.02750852,231.95,231.89,4.3127]
[1737986281919,1.5955,232.06,231.91,17.13240514]
[1737986282121,3.5145,232.07,231.95,17.13240514]
[1737986282623,4.3101,232.03,231.95,21.44380514]
[1737986282817,3.5145,232.07,231.89,2.0539]
[1737986283017,1.6678,232.06,231.87,17.13240514]
[1737986283218,1.6678,232.06,231.96,0.03041053]
[1737986283219,0.0324663,232.0,231.96,0.03041053]
[1737986283625,0.0324663,232.0,231.83,17.13240514]
[1737986283824,1.6678,232.06,231.83,17.13240514]
[1737986284221,4.3124,231.91,231.83,17.13240514]
[1737986284623,5.1478,232.06,231.83,17.13240514]
[1737986284815,0.02770723,231.89,231.85,0.03238105]
[1737986285021,17.13240514,232.03,231.83,17.13240514]
[1737986285220,0.02956051,231.89,231.85,0.02929138]
[1737986285422,17.13240514,232.03,231.83,17.13240514]
[1737986285622,0.03284898,231.89,231.85,0.02768457]
[1737986285823,4.3107,232.0,231.92,0.03078428]
[1737986286023,17.13240514,232.03,231.83,17.13240514]
[1737986286224,0.0288539,231.98,231.94,0.03249819]
[1737986286424,0.0288539,231.98,231.79,17.13240514]
[1737986286620,17.13240514,231.95,231.75,17.13240514]
[1737986286918,4.3128,231.89,231.75,17.13240514]
[1737986287122,2.0764,231.94,231.79,17.13240514]
[1737986287524,4.3133,231.86,231.84,0.02726982]
[1737986287725,0.03056115,231.89,231.84,0.02726982]
[1737986288125,4.3133,231.86,231.84,0.02726982]
[1737986288625,0.03056115,231.89,231.75,17.13240514]
[1737986289023,2.0764,231.94,231.75,17.13240514]
[1737986289221,2.0764,231.94,231.79,17.13240514]
[1737986289526,17.13240514,232.03,231.83,17.13240514]
[1737986289722,0.02792386,231.89,231.88,4.3129]
[1737986289924,4.3108,232.0,231.88,17.13240514]
[1737986290227,19.20150514,232.11,231.88,17.13240514]
[1737986290822,4.3105,232.01,231.9,4.3125]
[1737986291019,4.3105,232.01,231.97,0.03248007]
[1737986291423,4.3107,232.0,231.97,0.03248007]
[1737986291727,0.03238237,232.02,231.97,0.03248007]
[1737986292228,0.03238237,232.02,231.84,17.13240514]
[1737986292529,17.13240514,232.03,231.84,17.13240514]
[1737986293320,0.03186936,231.96,231.91,0.02964243]
[1737986293523,4.3118,231.94,231.91,0.02964243]
[1737986294322,0.03186936,231.96,231.91,0.02964243]
[1737986294528,0.03186936,231.96,231.92,17.13240514]
[1737986295422,0.03186936,231.96,231.91,0.02964243]
[1737986296230,4.3122,231.92,231.91,0.02964243]
[1737986299233,4.3134,231.86,231.76,0.3235]
[1737986299832,1.7459,231.95,231.76,0.1255]
[1737986300233,0.02968688,231.88,231.83,0.0291032]
[1737986300636,4.3131,231.87,231.83,0.0291032]
[1737986301030,0.02968688,231.88,231.83,0.0291032]
[1737986301634,4.3136,231.84,231.83,0.0291032]
[1737986303237,0.02968688,231.88,231.71,17.13240514]
[1737986303238,1.3481,231.87,231.71,17.13240514]
[1737986303740,4.3142,231.81,231.71,17.13240514]
[1737986304038,1.3481,231.87,231.71,17.13240514]
[1737986304339,0.03148397,231.78,231.74,0.02885255]
[1737986304536,1.4432,231.86,231.74,0.02885255]
[1737986304835,0.03093941,231.78,231.74,0.02885255]
[1737986305041,1.7459,231.95,231.83,4.3138]
[1737986305232,1.7459,231.95,231.79,17.13240514]
[1737986305634,1.7459,231.95,231.84,4.3138]
[1737986305839,1.7459,231.95,231.79,17.13240514]
[1737986306139,0.02984321,231.89,231.85,0.03121272]
[1737986306842,4.3135,231.86,231.85,0.03121272]
[1737986307242,0.02984321,231.89,231.85,0.03121272]
[1737986307435,4.3135,231.86,231.85,0.03121272]
[1737986307741,0.02984321,231.89,231.85,0.03121272]
[1737986308634,4.3134,231.86,231.85,0.03121272]
[1737986309642,4.3143,231.82,231.73,4.3157]
[1737986309844,1.4183,231.94,231.73,4.3157]
[1737986310045,17.13240514,231.91,231.73,4.3157]
[1737986310338,17.13240514,231.91,231.72,17.13240514]
[1737986310737,1.4183,231.94,231.72,17.13240514]